bitfinex/quotes_BTCUSD_20240906
["timestamp","ask_amount","ask_price","bid_price","bid_amount"]
[1725623921632,0.21551521,56125.0,56124.0,0.25743]
[1725623922103,0.21551521,56125.0,56124.0,0.30265242]
[1725623922775,0.21351521,56125.0,56124.0,0.30265242]
[1725623923023,0.66986221,56125.0,56124.0,0.31165242]
[1725623923253,0.66986221,56125.0,56124.0,0.30665242]
[1725623923481,0.66986221,56125.0,56124.0,0.30265242]
[1725623923762,0.67085836,56125.0,56124.0,0.30965242]
[1725623923991,0.67185836,56125.0,56124.0,0.31665242]
[1725623924680,0.31551136,56125.0,56124.0,0.31665242]
[1725623925115,0.13733836,56125.0,56124.0,0.31665242]
[1725623925311,0.03733836,56125.0,56124.0,0.31665242]
[1725623925796,0.13733836,56125.0,56124.0,0.31665242]
[1725623926536,0.31551136,56125.0,56124.0,0.31665242]
[1725623926779,0.03734001,56125.0,56124.0,0.49482842]
[1725623927028,0.21551301,56125.0,56124.0,0.31665242]
[1725623930060,0.19879438,56125.0,56124.0,0.31665242]
[1725623930287,0.21550673,56125.0,56124.0,0.31665242]
[1725623931864,0.03733373,56125.0,56124.0,0.31665242]
[1725623933040,0.21550673,56125.0,56124.0,0.31665242]
[1725623933298,0.3318334,56128.0,56127.0,0.002]
[1725623933543,0.6099974,56128.0,56127.0,0.002]
[1725623933775,0.9663264,56128.0,56127.0,0.002]
[1725623933967,0.9663264,56128.0,56127.0,0.04520633]
[1725623934188,0.9663264,56128.0,56127.0,0.002]
[1725623934418,0.98303765,56128.0,56127.0,0.04520633]
[1725623934643,0.62670865,56128.0,56127.0,0.002]
[1725623934872,0.62649421,56128.0,56127.0,0.04920633]
[1725623935092,0.62649421,56128.0,56127.0,0.006]
[1725623935600,0.98282321,56128.0,56127.0,0.04920633]
[1725623935819,0.98282321,56128.0,56127.0,0.009]
[1725623936053,0.98282321,56128.0,56127.0,0.05220633]
[1725623936269,0.98282321,56128.0,56127.0,0.009]
[1725623936501,0.98282321,56128.0,56127.0,0.05220633]
[1725623937595,0.98363921,56128.0,56127.0,0.05220633]
[1725623939609,1.33996821,56128.0,56127.0,0.04910489]
[1725623940075,1.33996821,56128.0,56127.0,0.00589856]
[1725623943678,0.98363921,56128.0,56127.0,0.26949856]
[1725623946313,1.09033042,56128.0,56127.0,0.26949856]
[1725623946530,0.98363921,56128.0,56127.0,0.00589856]
[1725623946742,1.03698974,56128.0,56127.0,0.00589856]
[1725623947216,1.03698569,56128.0,56127.0,0.00589856]
[1725623947435,1.06365986,56128.0,56127.0,0.00589856]
[1725623947933,1.41998886,56128.0,56127.0,0.00589856]
[1725623948152,1.46317723,56128.0,56127.0,0.00589856]
[1725623948589,1.64962632,56128.0,56127.0,0.00589856]
[1725623948811,1.6682477,56128.0,56127.0,0.00589856]
[1725623949707,1.64781561,56128.0,56127.0,0.00589856]
[1725623950156,1.7556281,56128.0,56127.0,0.003]
[1725623950401,1.7596281,56128.0,56127.0,0.003]
[1725623950639,1.7556281,56128.0,56127.0,0.003]
[1725623950900,1.247214,56125.0,56124.0,0.00163]
[1725623951087,1.3639212,56125.0,56124.0,0.00163]
[1725623951339,1.4706479,56125.0,56124.0,0.00163]
[1725623951563,1.52381235,56125.0,56124.0,0.00163]
[1725623951756,1.44396955,56125.0,56124.0,0.00163]
[1725623951988,1.3639212,56125.0,56124.0,0.00163]
[1725623952217,1.44396778,56125.0,56124.0,0.00163]
[1725623953379,1.44496778,56125.0,56124.0,0.00163]
[1725623953599,1.3649212,56125.0,56124.0,0.00163]
[1725623954327,1.3659212,56125.0,56124.0,0.00163]
[1725623954551,1.349214,56125.0,56124.0,0.00163]
[1725623954776,1.36592019,56125.0,56124.0,0.00163]
[1725623955002,1.44596724,56125.0,56124.0,0.00163]
[1725623955273,1.36592019,56125.0,56124.0,0.00163]
[1725623955520,1.5524492,56125.0,56124.0,0.00163]
[1725623955752,1.5524492,56125.0,56124.0,0.11523]
[1725623956934,1.55244871,56125.0,56124.0,0.11523]
[1725623957192,1.7952244,56125.0,56124.0,0.11523]
[1725623959602,1.79529066,56125.0,56124.0,0.00163]
[1725623959833,2.26053766,56125.0,56124.0,0.00163]
[1725623960057,2.25953766,56125.0,56124.0,0.00163]
[1725623960287,2.25853766,56125.0,56124.0,0.00163]
[1725623960524,2.25953766,56125.0,56124.0,0.00163]
[1725623961459,2.15063766,56125.0,56124.0,0.00163]
[1725623961697,2.14963766,56125.0,56124.0,0.00163]
[1725623962353,2.14960803,56125.0,56124.0,0.00163]
[1725623962628,2.14960155,56125.0,56124.0,0.00163]
[1725623963076,2.01616344,56125.0,56124.0,0.00163]
[1725623963827,2.01616159,56125.0,56124.0,0.00163]
[1725623966409,2.14954159,56125.0,56124.0,0.00163]
[1725623967323,2.1495414,56125.0,56124.0,0.00163]
[1725623967546,2.0161614,56125.0,56124.0,0.00163]
[1725623970068,1.90836056,56125.0,56124.0,0.00163]
[1725623970844,1.90836062,56125.0,56124.0,0.00163]
[1725623974207,1.8916569,56125.0,56124.0,0.00163]
[1725623974474,1.9083614,56125.0,56124.0,0.00163]
[1725623977625,1.90836022,56125.0,56124.0,0.00163]
[1725623980682,1.55201322,56125.0,56124.0,0.10993]
[1725623980908,1.66864019,56125.0,56124.0,0.10993]
[1725623981136,1.68534367,56125.0,56124.0,0.10993]
[1725623981996,1.8916569,56125.0,56124.0,0.00163]
[1725623982682,1.90836075,56125.0,56124.0,0.00163]
[1725623984282,1.8916569,56125.0,56124.0,0.00163]
[1725623984514,1.90836101,56125.0,56124.0,0.00163]
[1725623984741,1.90836102,56125.0,56124.0,0.00163]
[1725623984976,1.92506514,56125.0,56124.0,0.00163]
[1725623986602,1.92506514,56125.0,56124.0,0.11833]
[1725623986833,1.90836102,56125.0,56124.0,0.11833]
[1725623987740,1.90836102,56125.0,56124.0,0.25603]
[1725623988235,1.55201402,56125.0,56124.0,0.25603]
[1725623989370,1.30119852,56125.0,56124.0,0.25603]
[1725623989593,1.53296116,56125.0,56124.0,0.25603]
[1725623989828,1.5496648,56125.0,56124.0,0.25603]
[1725623991278,1.54967952,56125.0,56124.0,0.25603]
[1725623992350,1.44295411,56125.0,56124.0,0.25603]
[1725623992581,1.31972939,56125.0,56124.0,0.25603]
[1725623992810,1.44295411,56125.0,56124.0,0.25603]
[1725623993758,1.42625047,56125.0,56124.0,0.25603]
[1725623996492,1.533037,56125.0,56124.0,0.25603]
[1725623998108,1.51633288,56125.0,56124.0,0.25603]
[1725623998338,1.53303668,56125.0,56124.0,0.25603]
[1725623998554,1.55976328,56125.0,56124.0,0.25603]
[1725623999462,1.50626146,56125.0,56124.0,0.25603]
[1725624000577,1.50626146,56125.0,56124.0,0.11833]
[1725624001796,1.50626146,56125.0,56124.0,0.00163]
[1725624003134,1.86260846,56125.0,56124.0,0.00163]
[1725624003359,2.02282866,56125.0,56124.0,0.00163]
[1725624003621,1.38303674,56125.0,56124.0,0.10963]
[1725624003862,0.20357982,56125.0,56124.0,0.26263]
[1725624004087,0.000816,56127.0,56126.0,0.18817]
[1725624004316,0.02756198,56127.0,56126.0,1.36465096]
[1725624004538,0.02756198,56127.0,56126.0,1.84421668]
[1725624004539,0.000816,56127.0,56126.0,1.84421668]
[1725624004774,0.000816,56127.0,56126.0,1.18914]
[1725624005296,0.000816,56128.0,56127.0,0.544501]
[1725624005551,0.000816,56132.0,56131.0,0.01]
[1725624005794,0.000816,56132.0,56131.0,1.81527892]
[1725624006043,0.000816,56132.0,56131.0,0.2659]
[1725624006472,0.2057178,56132.0,56131.0,0.2659]
[1725624007144,0.2067178,56132.0,56131.0,0.2779]
[1725624007409,0.0285668,56132.0,56131.0,0.2779]
[1725624007602,0.0275668,56132.0,56131.0,0.622209]
[1725624007831,0.0275668,56132.0,56131.0,1.1930371]
[1725624008297,0.05343753,56148.0,56147.0,0.01]
[1725624008520,0.08015262,56150.0,56148.0,0.1171]
[1725624008521,0.27955415,56150.0,56148.0,0.1171]
[1725624008780,0.534292,56149.0,56148.0,0.1171]
[1725624009456,0.534292,56149.0,56148.0,0.1271]
[1725624009704,0.634292,56149.0,56148.0,0.1271]
[1725624009918,0.278097,56149.0,56148.0,0.1271]
[1725624010596,0.1,56149.0,56148.0,0.1271]
[1725624010840,0.278097,56149.0,56148.0,0.1291]
[1725624011057,0.1,56149.0,56148.0,0.1291]
[1725624011318,0.01862138,56150.0,56148.0,0.1291]
[1725624011319,0.19671538,56150.0,56149.0,0.01]
[1725624011554,0.29671538,56150.0,56149.0,0.01]
[1725624011828,0.01862138,56150.0,56149.0,0.1483]
[1725624012044,0.37480938,56150.0,56149.0,0.1383]
[1725624012305,0.37480938,56150.0,56148.0,0.1211]
[1725624012306,0.178097,56149.0,56148.0,0.1211]
[1725624012550,0.178119,56142.0,56141.0,0.1158]
[1725624012759,1.12147758,56142.0,56141.0,0.1158]
[1725624013265,0.534406,56137.0,56136.0,0.2541]
[1725624013507,0.890677,56137.0,56136.0,0.2541]
[1725624013731,1.246948,56137.0,56131.0,0.1383]
[1725624013970,0.534454,56132.0,56131.0,0.1158]
[1725624014227,0.58717658,56133.0,56125.0,0.1158]
[1725624014228,0.17817,56126.0,56125.0,0.1158]
[1725624014444,0.890852,56126.0,56125.0,0.1158]
[1725624014669,0.890852,56126.0,56125.0,0.1258]
[1725624014670,0.534511,56126.0,56125.0,0.1258]
[1725624014913,0.17817,56126.0,56125.0,0.1258]
[1725624016115,0.19488896,56126.0,56125.0,0.1258]
[1725624016346,0.19488896,56126.0,56125.0,0.1298]
[1725624016569,0.19488896,56126.0,56125.0,0.1268]
[1725624016830,0.19488896,56126.0,56125.0,0.1168]
[1725624016831,0.55122996,56126.0,56125.0,0.1168]
[1725624017055,0.55122996,56126.0,56125.0,0.1258]
[1725624017306,0.55122996,56126.0,56125.0,0.1268]
[1725624017531,0.90757096,56126.0,56125.0,0.1268]
[1725624018009,0.55122996,56126.0,56125.0,0.1198]
[1725624018236,0.57798049,56126.0,56125.0,0.17301706]
[1725624018461,0.93432149,56126.0,56125.0,0.16001706]
[1725624018703,0.57798049,56126.0,56125.0,0.17401706]
[1725624018925,0.57798051,56126.0,56125.0,0.1208]
[1725624019153,0.57798051,56126.0,56125.0,0.16301706]
[1725624019397,0.57798051,56126.0,56125.0,0.1198]
[1725624019643,1.39971809,56126.0,56125.0,0.006]
[1725624020110,1.62235909,56126.0,56125.0,0.006]
[1725624020819,1.62235909,56126.0,56125.0,0.004]
[1725624021040,1.62435909,56126.0,56125.0,0.004]
[1725624021934,1.62535909,56126.0,56125.0,0.004]
[1725624022825,1.98170009,56126.0,56125.0,0.004]
[1725624023080,1.62535909,56126.0,56125.0,0.004]
[1725624024422,1.64398047,56126.0,56125.0,0.004]
[1725624025112,0.16590689,56126.0,56125.0,0.1334]
[1725624025342,0.16590689,56126.0,56125.0,0.66792]
[1725624025569,0.06590689,56126.0,56125.0,1.0934995]
[1725624025831,0.06590689,56126.0,56125.0,0.7371525]
[1725624026283,0.06490689,56126.0,56125.0,0.7331525]
[1725624026513,0.06490689,56126.0,56125.0,0.8734525]
[1725624026772,0.06490689,56126.0,56125.0,0.8834525]
[1725624026773,0.06390689,56126.0,56125.0,0.8834525]
[1725624026962,0.06590689,56126.0,56125.0,0.8834525]
[1725624027460,0.06390689,56126.0,56125.0,0.8834525]
[1725624027930,0.06390689,56126.0,56125.0,0.8914525]
[1725624028186,0.06390689,56126.0,56125.0,0.5351055]
[1725624029107,0.06390689,56126.0,56125.0,0.8914525]
[1725624031181,0.356304,56132.0,56130.0,0.01]
[1725624031400,0.356304,56132.0,56125.0,0.7032795]
[1725624031401,0.178151,56132.0,56131.0,0.01]
[1725624031629,0.356277,56136.0,56134.0,0.01]
[1725624031867,0.278144,56135.0,56134.0,0.01]
[1725624032300,0.1,56135.0,56134.0,0.01]
[1725624032561,0.278141,56135.0,56134.0,0.01]
[1725624033238,0.634424,56135.0,56134.0,0.01]
[1725624033518,0.990707,56135.0,56134.0,0.01]
[1725624034218,0.992707,56135.0,56134.0,0.01]
[1725624034673,0.993707,56135.0,56134.0,0.01]
[1725624035146,0.178148,56133.0,56132.0,0.01]
[1725624035387,0.103,56135.0,56134.0,0.1206]
[1725624035601,0.281141,56135.0,56134.0,0.1206]
[1725624036078,0.280641,56135.0,56134.0,0.1206]
[1725624036309,0.280641,56135.0,56134.0,0.2672]
[1725624036541,0.1025,56135.0,56134.0,0.2672]
[1725624036780,0.1025,56135.0,56134.0,1.19539645]
[1725624036781,0.001,56135.0,56134.0,1.19539645]
[1725624037973,0.19674438,56141.0,56137.0,0.178133]
[1725624038228,0.178129,56139.0,56138.0,0.01]
[1725624038479,0.178129,56139.0,56134.0,0.012]
[1725624038480,0.544424,56135.0,56134.0,0.012]
[1725624038706,1.48787058,56135.0,56134.0,0.012]
[1725624039193,0.89082,56128.0,56127.0,0.01]
[1725624039410,0.99082,56128.0,56127.0,0.01]
[1725624040181,1.01874125,56128.0,56127.0,0.01]
[1725624040675,0.99082,56128.0,56127.0,0.01]
[1725624041160,1.01752023,56128.0,56127.0,0.01]
[1725624041405,1.02052023,56128.0,56127.0,0.01]
[1725624041852,1.02252023,56128.0,56127.0,0.01]
[1725624042086,1.02052023,56128.0,56127.0,0.01]
[1725624042539,1.02052023,56128.0,56127.0,0.014]
[1725624042757,1.01752023,56128.0,56127.0,0.01]
[1725624043252,1.03420684,56128.0,56127.0,0.01]
[1725624043704,1.03420696,56128.0,56127.0,0.01]
[1725624043927,1.06412826,56128.0,56127.0,0.01]
[1725624044610,1.06312826,56128.0,56127.0,0.01]
[1725624044861,1.06612826,56128.0,56127.0,0.01]
[1725624045119,1.42145626,56128.0,56127.0,0.011632]
[1725624045369,1.42145626,56128.0,56127.0,0.013632]
[1725624046273,1.41845626,56128.0,56127.0,0.013632]
[1725624047244,1.41845545,56128.0,56127.0,0.013632]
[1725624048215,1.43707683,56128.0,56127.0,0.013632]
[1725624049388,1.43707683,56128.0,56127.0,0.003632]
[1725624050296,1.79340483,56128.0,56127.0,0.003632]
[1725624050772,2.15097753,56128.0,56127.0,0.003632]
[1725624050999,2.07129484,56128.0,56127.0,0.003632]
[1725624051228,2.15095012,56128.0,56127.0,0.003632]
[1725624052379,2.15094436,56128.0,56127.0,0.003632]
[1725624052833,2.13612971,56128.0,56127.0,0.003632]
[1725624053059,2.03001452,56128.0,56127.0,0.003632]
[1725624053285,2.21750895,56128.0,56127.0,0.003632]
[1725624053522,2.26088319,56128.0,56127.0,0.003632]
[1725624054229,2.02427521,56128.0,56127.0,0.003632]
[1725624056774,2.02428563,56128.0,56127.0,0.003632]
[1725624058849,1.98090097,56128.0,56127.0,0.003632]
[1725624059131,1.62457297,56128.0,56127.0,0.003632]
[1725624059350,1.62457297,56128.0,56127.0,0.130432]
[1725624059351,0.68103639,56128.0,56127.0,0.130432]
[1725624059578,1.26824497,56128.0,56127.0,0.130432]
[1725624059801,1.26824497,56128.0,56127.0,0.17384745]
[1725624060259,1.31163916,56128.0,56127.0,0.130432]
[1725624060487,0.16201557,56128.0,56127.0,0.454099]
[1725624060722,0.16201557,56128.0,56127.0,0.275932]
[1725624060971,0.76536358,56129.0,56128.0,0.01]
[1725624061197,0.40904158,56129.0,56128.0,0.01]
[1725624061392,0.76536358,56129.0,56128.0,0.05341009]
[1725624062098,0.40904158,56129.0,56128.0,0.05341009]
[1725624062327,0.76536358,56129.0,56128.0,0.05341009]
[1725624062568,0.40904158,56129.0,56128.0,0.05841009]
[1725624062868,0.40904158,56129.0,56128.0,0.05341009]
[1725624063096,0.50904158,56129.0,56128.0,0.05641009]
[1725624063323,0.51004158,56129.0,56128.0,0.06241009]
[1725624063560,0.50904158,56129.0,56128.0,0.05641009]
[1725624064979,0.50904158,56129.0,56128.0,0.05841009]
[1725624065229,0.50904158,56129.0,56128.0,0.05741009]
[1725624065460,0.86536358,56129.0,56128.0,0.05741009]
[1725624065687,0.86536358,56129.0,56128.0,0.88527663]
[1725624065688,0.001,56129.0,56128.0,0.88527663]
[1725624065936,0.001,56129.0,56128.0,0.88127663]
[1725624066454,0.001,56129.0,56128.0,0.88627663]
[1725624066702,0.000816,56135.0,56134.0,0.2676]
[1725624066937,0.40983758,56135.0,56134.0,0.2676]
[1725624067172,0.86612058,56135.0,56134.0,0.31097791]
[1725624067397,0.86612058,56135.0,56134.0,0.2676]
[1725624067613,0.86612058,56135.0,56134.0,0.31097791]
[1725624067833,0.63524,56135.0,56134.0,0.31097791]
[1725624068065,0.278957,56135.0,56134.0,0.31097791]
[1725624068292,0.63524,56135.0,56134.0,0.31097791]
[1725624068742,0.279957,56135.0,56134.0,0.31097791]
[1725624069697,0.101816,56135.0,56134.0,0.31097791]
[1725624069937,0.101816,56135.0,56134.0,0.48912291]
[1725624070170,0.101816,56135.0,56134.0,0.525713]
[1725624070171,0.001816,56135.0,56134.0,0.525713]
[1725624070444,0.001816,56135.0,56134.0,0.882003]
[1725624070903,0.02853046,56135.0,56134.0,0.882003]
[1725624071131,0.003816,56135.0,56134.0,0.882003]
[1725624072046,0.002816,56135.0,56134.0,1.594583]
[1725624072241,0.002816,56135.0,56134.0,1.238293]
[1725624072503,0.001816,56135.0,56134.0,1.245293]
[1725624072737,0.000816,56135.0,56134.0,1.248293]
[1725624073167,0.001816,56135.0,56134.0,1.260293]
[1725624073389,0.001816,56135.0,56134.0,1.238293]
[1725624073619,0.002816,56135.0,56134.0,1.262293]
[1725624073848,0.001816,56135.0,56134.0,1.249293]
[1725624074095,0.0185148,56135.0,56134.0,1.238293]
[1725624074582,0.0185148,56135.0,56134.0,1.78109396]
[1725624074807,0.001816,56135.0,56134.0,1.65568454]
[1725624075044,0.001816,56135.0,56134.0,1.249293]
[1725624075495,0.0195168,56135.0,56134.0,1.262293]
[1725624075730,0.01751661,56135.0,56134.0,1.238293]
[1725624075979,0.000816,56135.0,56134.0,1.238293]
[1725624076222,0.001816,56135.0,56134.0,1.265293]
[1725624076471,0.000816,56135.0,56134.0,1.251293]
[1725624076715,0.001816,56135.0,56134.0,1.252293]
[1725624076938,0.001816,56135.0,56134.0,1.266293]
[1725624079030,0.001816,56135.0,56134.0,1.44180396]
[1725624079485,0.001816,56135.0,56134.0,1.79809396]
[1725624080647,0.001816,56135.0,56134.0,2.02897454]
[1725624083455,0.001816,56135.0,56134.0,1.266293]
[1725624083711,0.19665742,56135.0,56134.0,0.08137791]
[1725624083961,0.01851642,56135.0,56134.0,0.08137791]
[1725624084196,0.19665742,56135.0,56134.0,0.08137791]
[1725624084671,0.01851642,56135.0,56134.0,0.08137791]
[1725624085562,0.0452324,56135.0,56134.0,0.25952291]
[1725624087165,0.04522849,56135.0,56134.0,0.25952291]
[1725624089003,0.04522966,56135.0,56134.0,0.25952291]
[1725624090633,0.04522966,56135.0,56134.0,0.08137791]
[1725624090871,0.81053424,56135.0,56134.0,0.07137791]
[1725624091093,1.16681724,56135.0,56134.0,0.028]
[1725624091324,1.52310024,56135.0,56134.0,0.028]
[1725624091544,1.62310024,56135.0,56134.0,0.028]
[1725624092037,1.77340024,56135.0,56134.0,0.028]
[1725624092283,1.72998658,56135.0,56134.0,0.014]
[1725624092524,1.77339764,56135.0,56134.0,0.014]
[1725624092777,1.88749764,56135.0,56134.0,0.019]
[1725624093016,2.24278064,56135.0,56134.0,0.005]
[1725624093266,1.247127,56129.0,56128.0,0.001632]
[1725624093487,1.62141864,56129.0,56128.0,0.001632]
[1725624093717,1.87821864,56129.0,56128.0,0.001632]
[1725624095377,1.85150225,56129.0,56128.0,0.001632]
[1725624095625,1.87821373,56129.0,56128.0,0.001632]
[1725624096096,1.87821373,56129.0,56128.0,0.004632]
[1725624096342,1.87821373,56129.0,56128.0,0.005632]
[1725624097593,0.14340615,56129.0,56128.0,0.135032]
[1725624097831,0.22156715,56129.0,56128.0,0.135032]
[1725624098096,0.14340615,56129.0,56128.0,0.17844209]
[1725624098338,0.14340615,56129.0,56128.0,0.35660609]
[1725624098586,0.14341238,56129.0,56128.0,0.35660609]
[1725624099081,0.14341238,56129.0,56128.0,0.35360609]
[1725624099348,0.14341238,56129.0,56128.0,0.35260609]
[1725624099598,0.14341238,56129.0,56128.0,0.35460609]
[1725624099835,0.14341238,56129.0,56128.0,0.35260609]
[1725624100082,0.14341238,56129.0,56128.0,0.35560609]
[1725624100327,0.14341238,56129.0,56128.0,0.35660609]
[1725624100573,0.04341238,56129.0,56128.0,0.35660609]
[1725624101068,0.11862138,56131.0,56129.0,0.178161]
[1725624101301,0.0434167,56130.0,56129.0,0.178161]
[1725624101776,0.04341893,56130.0,56129.0,0.178161]
[1725624102009,0.04341893,56130.0,56129.0,0.188161]
[1725624102461,0.04341893,56130.0,56129.0,0.544483]
[1725624102695,0.04441893,56130.0,56129.0,1.08316149]
[1725624102920,0.01769959,56130.0,56129.0,1.43948349]
[1725624103140,0.01769959,56130.0,56129.0,1.55538349]
[1725624103373,0.01769959,56130.0,56129.0,2.08721645]
[1725624103374,0.001,56130.0,56129.0,2.08721645]
[1725624104765,0.001,56130.0,56129.0,1.73089445]
[1725624105000,0.001,56130.0,56129.0,1.73589445]
[1725624105438,0.000816,56135.0,56134.0,1.009525]
[1725624105663,0.01751933,56135.0,56134.0,1.36949055]
[1725624105878,0.000816,56135.0,56134.0,1.36949055]
[1725624106751,0.000816,56135.0,56134.0,1.38349055]
[1725624107200,0.32624704,56145.0,56134.0,0.50676555]
[1725624107433,0.57775788,56144.0,56143.0,0.01]
[1725624107657,0.57775666,56144.0,56143.0,0.01]
[1725624108777,0.57775666,56144.0,56143.0,0.019]
[1725624109703,0.57775666,56144.0,56143.0,0.027]
[1725624109962,0.93398366,56144.0,56143.0,0.017]
[1725624111757,1.29021066,56144.0,56143.0,0.017]
[1725624116217,2.00713766,56144.0,56143.0,0.017]
[1725624116692,2.00713766,56144.0,56134.0,0.01]
[1725624116693,0.81356578,56144.0,56134.0,0.01]
[1725624116905,0.295241,56135.0,56134.0,0.01]
[1725624117133,1.03451809,56135.0,56134.0,0.01]
[1725624117375,1.22935452,56135.0,56131.0,0.01]
[1725624117602,0.890757,56132.0,56131.0,0.01]
[1725624117839,0.93416252,56132.0,56131.0,0.01]
[1725624118071,0.93416252,56132.0,56131.0,0.04375089]
[1725624118753,0.93416252,56132.0,56131.0,0.01]
[1725624118995,0.93416252,56132.0,56131.0,0.017]
[1725624119725,0.93416252,56132.0,56131.0,0.05875089]
[1725624119962,0.534454,56132.0,56131.0,0.025]
[1725624120220,0.22155553,56132.0,56131.0,0.05875089]
[1725624120439,0.22155553,56132.0,56131.0,0.025]
[1725624120667,0.04340453,56132.0,56131.0,0.16885089]
[1725624121147,0.04340453,56132.0,56131.0,0.34700489]
[1725624121392,0.04340453,56132.0,56131.0,0.34251218]
[1725624121393,0.01669405,56132.0,56131.0,0.34251218]
[1725624121603,0.01669405,56132.0,56131.0,0.52066618]
[1725624121830,0.01669405,56132.0,56131.0,0.34251218]
[1725624122072,0.01669405,56132.0,56131.0,0.52066618]
[1725624122287,0.01669405,56132.0,56131.0,0.87697518]
[1725624123466,0.01669405,56132.0,56131.0,0.52066618]
[1725624123687,0.01669405,56132.0,56131.0,0.09571218]
[1725624123875,0.04340822,56132.0,56131.0,0.09571218]
[1725624124105,0.04340822,56132.0,56131.0,0.05875089]
[1725624124357,0.22155922,56132.0,56131.0,0.05875089]
[1725624125031,0.534454,56132.0,56131.0,0.05875089]
[1725624125275,0.57786196,56132.0,56131.0,0.05875089]
[1725624125712,0.22155896,56132.0,56131.0,0.05875089]
[1725624126163,0.178148,56133.0,56132.0,0.01]
[1725624126385,0.356275,56137.0,56136.0,0.01]
[1725624126386,0.53441,56137.0,56136.0,0.01]
[1725624126618,0.04341275,56137.0,56136.0,0.1291]
[1725624126829,0.22154775,56137.0,56136.0,0.16283003]
[1725624128224,0.22154775,56137.0,56136.0,0.16483003]
[1725624128462,0.57781875,56137.0,56136.0,0.16483003]
[1725624129129,0.534406,56137.0,56136.0,0.16583003]
[1725624129390,0.57781831,56137.0,56136.0,0.16583003]
[1725624129613,0.57781831,56137.0,56136.0,0.04673003]
[1725624130343,0.22154731,56137.0,56136.0,0.04673003]
[1725624130585,0.57781831,56137.0,56136.0,0.04673003]
[1725624132205,0.356237,56143.0,56140.0,0.01]
[1725624132206,0.356249,56141.0,56140.0,0.01]
[1725624132429,0.67777931,56141.0,56140.0,0.01]
[1725624134358,1.03702831,56141.0,56140.0,0.01]
[1725624134788,1.04002831,56141.0,56140.0,0.01]
[1725624135437,0.99662,56141.0,56140.0,0.01]
[1725624135710,1.04002773,56141.0,56140.0,0.01]
[1725624135937,1.03702773,56141.0,56140.0,0.01]
[1725624136149,1.03402773,56141.0,56140.0,0.01]
[1725624136361,1.03402773,56141.0,56140.0,0.011]
[1725624139474,1.03402773,56141.0,56140.0,0.011]
[1725624141870,1.00731594,56141.0,56140.0,0.011]
[1725624142124,1.03402945,56141.0,56140.0,0.011]
[1725624144860,0.99062,56141.0,56140.0,0.011]
[1725624145286,1.03401089,56141.0,56140.0,0.011]
[1725624146657,1.04388749,56141.0,56140.0,0.011]
[1725624146896,1.69752946,56141.0,56140.0,0.001]
[1725624147132,1.64426197,56141.0,56140.0,0.001]
[1725624147358,1.7241632,56141.0,56140.0,0.001]
[1725624147820,2.0804122,56141.0,56140.0,0.001]
[1725624148041,2.30275151,56141.0,56140.0,0.001]
[1725624148471,2.8487228,56141.0,56140.0,0.001]
[1725624148693,2.49247343,56141.0,56140.0,0.001]
[1725624148908,2.68892033,56141.0,56140.0,0.001]
[1725624149116,2.33267133,56141.0,56140.0,0.001]
[1725624149326,0.2591,56135.0,56131.0,0.001632]
[1725624149559,0.48893407,56132.0,56131.0,0.001632]
[1725624149786,1.62133355,56132.0,56131.0,0.001632]
[1725624150010,1.70122685,56132.0,56131.0,0.001632]
[1725624150234,1.70122677,56132.0,56131.0,0.001632]
[1725624150681,1.62132306,56132.0,56131.0,0.001632]
[1725624150896,1.67457925,56132.0,56131.0,0.001632]
[1725624151184,1.63119677,56132.0,56131.0,0.001632]
[1725624151402,1.6213234,56132.0,56131.0,0.001632]
[1725624151618,1.63119277,56132.0,56131.0,0.002632]
[1725624155210,1.68616172,56132.0,56131.0,0.004632]
[1725624157067,1.22388803,56132.0,56131.0,0.004632]
[1725624157280,1.63291961,56132.0,56131.0,0.004632]
[1725624157505,1.58953679,56132.0,56131.0,0.004632]
[1725624157731,1.63291883,56132.0,56131.0,0.004632]
[1725624158173,1.65154021,56132.0,56131.0,0.004632]
[1725624158878,2.34153643,56132.0,56131.0,0.004632]
[1725624159110,2.26164321,56132.0,56131.0,0.004632]
[1725624159329,2.36809958,56132.0,56131.0,0.004632]
[1725624159561,2.26164321,56132.0,56131.0,0.004632]
[1725624159786,2.26164321,56132.0,56131.0,0.001632]
[1725624160011,2.26664321,56132.0,56131.0,0.002632]
[1725624160240,2.27064321,56132.0,56131.0,0.002632]
[1725624160689,2.27164321,56132.0,56131.0,0.002632]
[1725624160939,2.35145795,56132.0,56131.0,0.002632]
[1725624161216,2.35545795,56132.0,56131.0,0.003632]
[1725624161638,2.35145795,56132.0,56131.0,0.002632]
[1725624161860,2.34545795,56132.0,56131.0,0.002632]
[1725624162297,2.35045795,56132.0,56131.0,0.003632]
[1725624162526,2.26564321,56132.0,56131.0,0.002632]
[1725624162746,2.26564321,56132.0,56131.0,0.003632]
[1725624162963,2.27064321,56132.0,56131.0,0.003632]
[1725624163391,2.26664321,56132.0,56131.0,0.002632]
[1725624163615,2.26664321,56132.0,56131.0,0.003632]
[1725624163827,2.27064321,56132.0,56131.0,0.003632]
[1725624164499,2.32383487,56132.0,56131.0,0.003632]
[1725624164727,2.27064321,56132.0,56131.0,0.003632]
[1725624164973,2.32383487,56132.0,56131.0,0.003632]
[1725624165256,2.31983487,56132.0,56131.0,0.002632]
[1725624165668,2.31483487,56132.0,56131.0,0.001632]
[1725624165896,1.70973187,56132.0,56131.0,0.002632]
[1725624166103,1.30023721,56132.0,56131.0,0.002632]
[1725624166554,1.27354057,56132.0,56131.0,0.002632]
[1725624166795,1.27354057,56132.0,56131.0,0.001632]
[1725624166796,1.26854057,56132.0,56131.0,0.001632]
[1725624167021,1.27354057,56132.0,56131.0,0.001632]
[1725624167233,1.27754057,56132.0,56131.0,0.002632]
[1725624167896,1.27354057,56132.0,56131.0,0.001632]
[1725624168163,0.67476078,56132.0,56131.0,0.149632]
[1725624168403,0.04430678,56132.0,56131.0,0.159632]
[1725624168653,0.03930678,56132.0,56131.0,0.30318289]
[1725624169350,0.03530678,56132.0,56131.0,0.30318289]
[1725624169601,0.356271,56137.0,56131.0,0.30318289]
[1725624169823,0.178146,56134.0,56131.0,0.30318289]